{"text_format":"1","workbook":"xlsx","n_sheets":12,"sheets":["Copyright","Introducción","Instrucciones de uso","Material relacionado","Datos iniciales","Ingresos","Aportes","Retenciones","F220","Comentarios","Instructivo","Hoja1"],"not_rendered":{"charts":0,"images":11,"macros":1,"external_links":0,"defined_names":1,"comments":0,"pivot_tables":0},"unopened":[],"bounds":{"document_bytes":16777216,"sheet_cells":100000,"rows_first":2000,"rows_last":500,"rows_between":2000,"halvings":0,"cell_chars":16384,"cell_head_chars":4096},"cells_cut":0,"cells_raw":0,"read":"whole","date_system":"1900"}

{"sheet":"Copyright","index":0,"n_rows":15,"n_cols":2,"rows_kept":15,"cut":false,"hidden":true,"merged":[[14,1,14,9],[9,2,9,6],[10,1,10,7],[11,1,11,7],[1,4,1,7],[3,1,3,7],[4,1,4,7],[5,1,5,7],[6,1,6,7],[7,1,7,7]]}
[]
[]
[]
[]
[]
[]
[]
[]
[]
[]
[]
[]
[]
[]
[null,"https://actualicese.com/liquidador-certificado-de-ingresos-y-retenciones-plantilla-del-formulario-220-ag-2022/"]

{"sheet":"Introducción","index":1,"n_rows":35,"n_cols":8,"rows_kept":35,"cut":false,"hidden":true,"merged":[[10,0,10,7],[12,0,12,7],[5,0,7,7],[9,0,9,7],[18,0,18,7],[14,0,14,7],[16,0,16,5],[16,6,16,7],[17,0,17,4],[17,5,17,7],[13,0,13,7],[8,0,8,7],[20,0,20,7],[21,0,21,7],[24,0,24,2],[24,3,24,7],[25,0,25,7],[26,0,26,7],[27,0,29,7],[32,0,32,6],[31,0,31,7],[34,0,35,7]]}
[]
[]
[]
[]
[]
["[Liquidador] Certificado de ingresos y retenciones: plantilla del formulario 220 AG 2022"]
[]
[]
["Fecha de elaboración: 28 de marzo de 2023"]
["Mediante el artículo 1 de la Resolución 000042 de marzo 15 de 2023 la Dian prescribió el formulario"]
["220 que todos los empleadores (personas naturales y jurídicas) deberán expedir para certificar los pagos por rentas de trabajo del año gravable 2022."]
[]
["Los agentes de retención en la fuente tienen la obligación de expedir anualmente a los asalariados, un certificado de ingresos y retenciones correspondiente al año gravable inmediatamente anterior.\n\n"]
["Al respecto, los artículos 378 y 379 del ET, y el artículo 1.6.1.13.2.40 del DUT 1625 de 2016 (luego de ser modificado por el Decreto 2487 de diciembre 16 de 2022) indican que todos los empleadores deberán expedir el formulario 220 “certificado de ingresos y retenciones” por los pagos laborales que hicieron a sus trabajadores durante el año gravable 2022 antes del 31 de marzo de 2023. \n\nEsta obligación debe cumplirse incluso con aquellos trabajadores que laboraron durante el 2022, aunque se hayan ido de la empresa antes de diciembre 31 de ese mismo año. "]
["Expedición del certificado de ingresos y retenciones por el año gravable 2022"]
[]
["Se debe tener presente que los artículos 378 al 380 del ET, así",null,null,null,null,null,"como el Fallo del Consejo de "]
["Estado de febrero de 2003 para el expediente 12859,",null,null,null,null,"indican que el certificado de ingresos y"]
["retenciones contenido en el formulario 220 siempre se debe expedir sin que el asalariado lo deba solicitar primero, pues equivale al documento que reemplazará su declaración de renta cuando el contribuyente no quede obligado a declarar o tampoco quiera hacerlo voluntariamente, caso en el que tendrá que conservar su formulario 220 durante 5 años."]
[]
["Este certificado lo deben expedir las personas jurídicas o naturales a más tardar el 31 de marzo de 2023 (ver el artículo 1.6.1.13.2.40 del DUT 1625 de 2016, modificado por el artículo"]
["1 del Decreto 2487 de 2022)."]
[]
["La no entrega oportuna de este certificado se sanciona conforme a lo indicado en ",null,null,null,null,null,null,"el artículo 667 del"]
["ET (que fue modificado con el ",null,null,"artículo 292 de la Ley 1819 de 2016). "]
[]
["Guía Multiformato: novedades en la preparación y presentación de información exógena 2022 "]
["La Resolución 000124 de octubre 28 de 2021 contiene las instrucciones sobre quiénes son los obligados a reportar la información exógena tributaria del año gravable 2022, al igual que los formatos que deberán presentarse."]
[]
[]
[]
["Conoce todas las novedades en la preparación y presentación de la información exógena tributaria a la Dian por el AG 2022 en el siguiente enlace:"]
["https://actualicese.com/producto/guia-multiformato-exogena-diego-guevara/"]
[]
["Nota: el diseño, los datos o comentarios bajo los cuales se elaboraron estos formatos se entregan a título de guía y hacen parte de la interpretación de Actualícese. Será el usuario quien deba estudiar las normas requeridas, preparar y emitir la información a la que haya lugar.\t\t\t"]

{"sheet":"Instrucciones de uso","index":2,"n_rows":19,"n_cols":1,"rows_kept":19,"cut":false,"hidden":false,"merged":[[5,0,7,7],[15,0,15,7],[17,0,17,7],[18,0,18,7],[16,0,16,7],[10,0,10,7],[11,0,11,7],[12,0,12,7],[13,0,13,7],[8,0,8,7]]}
[]
[]
[]
[]
[]
["Instrucciones de uso"]
[]
[]
[{"$f":"Introducción!A9","v":"Fecha de elaboración: 28 de marzo de 2023"}]
[]
["En el presente formato formulado en Excel se reproduce el contenido del formulario 220 del año gravable 2022."]
["Para su diligenciamiento es importante consultar las hojas “Datos iniciales\", \"Ingresos”, \"Aportes\" y “Retenciones” de este archivo de Excel, en las en las cuales se ingresará la información de los trabajadores. Este formato incluye la posibilidad de ingresar los datos de diferentes personas que perciban rentas de trabajo y de pensiones. "]
["Luego de diligenciar estas hojas se deben revisar la hoja “F220”, que reproduce el formulario 220."]
["Todos los comentarios para el diligenciamiento de estas hojas se encuentran en la hoja “Comentarios” y se podrá acceder a ellos desde los hipervínculos alojados al interior de cada anexo del formato (\"Ir a Nota xxx\"). "]
[]
["Además, incluye nuestro material relacionado, en el que, a través de casos, análisis y respuestas por parte de nuestro líder en investigación tributaria. Diego Guevara Madrid, podrás afianzar tu conocimiento sobre este y otros temas. "]
["Ir a hoja \"Material relacionado\""]
["Finalmente, luego de diligenciar todos los anexos de este formato podrá generar los formularios de sus empleados, de acuerdo con el rango “ID” que elijas con un solo clic en el botón “PDF” de la hoja “F220”."]
["Nota: el diseño, los datos, comentarios o interpretaciones bajo las cuales ha sido elaborada esta plantilla se entregan a título de guía. Será el contribuyente quien deba atender las instrucciones de la Dian, estudiar las normas requeridas, preparar y emitir la información a que haya lugar. Actualícese no se hace responsable de las interpretaciones, operaciones o información derivadas del uso de esta herramienta."]

{"sheet":"Material relacionado","index":3,"n_rows":30,"n_cols":1,"rows_kept":30,"cut":false,"hidden":false,"merged":[[28,0,28,7],[29,0,29,7],[25,0,25,7],[26,0,26,7],[23,0,23,7],[22,0,22,7],[5,0,7,7],[10,0,10,7],[11,0,11,7],[13,0,13,7],[14,0,14,7],[16,0,16,7],[17,0,17,7],[19,0,19,7],[20,0,20,7],[8,0,8,7]]}
[]
[]
[]
[]
[]
["Material relacionado"]
[]
[]
[{"$f":"Introducción!A9","v":"Fecha de elaboración: 28 de marzo de 2023"}]
[]
["[2023] Formularios e instructivos de la Dian - Actualícese"]
["El Ministerio de Hacienda y la Dian, a través de diversas normas, prescribirán los formatos y formularios para que los contribuyentes obligados a declarar cumplan con sus respectivas obligaciones tributarias durante 2023.\n\nEn este apartado relacionaremos dichas normas y sus respectivos formularios durante el año en curso."]
[]
["[Calendario] Calendario tributario 2023 "]
["Con el calendario tributario 2023  conocerás los plazos de obligaciones tributarias y de reporte de información en Colombia.\n\nSe elaboró a partir de los Decretos 0219 de 2023 y 2487 de 2022, teniendo en cuenta los cambios introducidos por la Ley 2277 de reforma tributaria 2022."]
[]
["[Análisis] Personas naturales que realicen pagos por rentas de trabajo: ¿cuándo actúan como agentes de retención?"]
["Los pagos por rentas laborales se someterán a las tarifas de retención en la fuente del artículo 383 del ET siempre que se cumplan los requisitos allí mencionados.\n\nLas personas naturales que efectúen estos pagos actuarán como agentes de retención si cumplen los requisitos del artículo 368-2 del ET."]
[]
["[Análisis] En exógena del AG 2022 se usará una nueva versión del formato 2276 para reportar rentas de trabajo"]
["De acuerdo con la Resolución 000124 de 2021, para el reporte del año gravable 2022 se usará la nueva versión 4 del formato 2276, el cual ya no tendrá 37 columnas sino 45.\n\nA continuación, listamos las novedades de la presentación de la nueva versión de este formato para la exógena del AG 2022."]
[]
["[Análisis] Formatos y condiciones para retención en la fuente bajo procedimientos 1 y 2 en el año gravable 2023"]
["Conoce qué se debe atender durante 2023 para calcular la retención en la fuente a título de rentas de trabajo (laborales y no laborales).\n\nEn este editorial encontrarás la descripción y enlaces de las herramientas que elaboró nuestro líder en investigación tributaria, Diego Guevara Madrid."]
[]
["[Guía avanzada] Tablas de retención en la fuente 2023 a título de impuestos nacionales"]
["Compartimos nuestra guía avanzada de retención en la fuente 2023 a título del impuesto de renta e IVA.\n\nEn esta se recopilan los conceptos, cuantías mínimas y tarifas más importantes para practicar retención en la fuente tanto a beneficiarios residentes como a no residentes."]
[]
["[Guía] Cuadro temático con las normas afectadas por la Ley de reforma tributaria 2277 de 2022"]
["El cuadro resumen que se incluye en esta herramienta será un apoyo para estudiar más fácilmente la Ley de reforma tributaria 2277 de diciembre 13 de 2022.\n\nEncuentra aquí la relación de las normas del Estatuto Tributario y otras que fueron agregadas, modificadas o derogadas."]

{"sheet":"Datos iniciales","index":4,"n_rows":30,"n_cols":12,"rows_kept":30,"cut":false,"hidden":false,"merged":[[5,0,6,11],[8,8,8,11]]}
[]
[]
[]
[]
[]
["DATOS INICIALES"]
[]
["Renglón",24,25,26,27,28,29,33,34,35,"N/A","N/A"]
["Ir a Nota 1",null,null,null,null,null,null,null,"Ir a Nota 2"]
["ID","Tipo de documento","Número de identificación","Primer apellido","Segundo apellido ","Primer nombre","Otros nombres","Lugar donde se practicó la retención","Cód. Dpto.","Cód. Ciudad/Municipio","Dirección","País"]
[1,13,1044140584,"PrimeroA","SegundoA","NombreA","NombreB","Cali",76,"001","CL 1 4 11",169]
[{"$f":"A11+1","v":2},13,31960555,"PrimeroY","SegundoZ","NombreY","NombreZ","Cali",76,"001","CL 2 3 12",169]
[{"$f":"A12+1","v":3}]
[4]
[5]
[6]
[7]
[8]
[9]
[10]
[11]
[12]
[13]
[14]
[15]
[16]
[17]
[18]
[19]
[20]

{"sheet":"Ingresos","index":5,"n_rows":33,"n_cols":37,"rows_kept":33,"cut":false,"hidden":false,"merged":[[11,2,11,7],[11,10,11,12],[11,13,11,15],[11,27,11,29],[8,30,9,32],[11,30,11,33],[8,22,9,24],[8,25,10,25],[5,0,6,12],[8,34,9,36],[7,34,7,36],[7,10,7,12],[8,10,9,12],[8,13,9,15],[7,13,7,15],[8,16,9,18],[7,16,7,18],[8,26,10,26],[7,27,7,29],[8,27,9,29],[7,19,7,21],[8,19,9,21],[7,22,7,24],[8,9,10,9],[7,30,7,32],[8,33,9,33],[8,0,9,0],[9,2,9,7],[8,2,8,8],[7,1,10,1],[7,2,7,8],[9,8,10,8]]}
[]
[]
[]
[]
[]
["INGRESOS"]
[]
["Renglón","Número de identificación",36,null,null,null,null,null,null,37,38,null,null,39,null,null,40,null,null,41,null,null,42,null,null,43,44,45,null,null,46,null,null,47,48]
["Concepto",null,"Salarios y emolumentos eclesiásticos",null,null,null,null,null,null,"Pagos realizados con bonos electrónicos o de papel de servicio, cheques, tarjetas, vales, etc.","Honorarios",null,null,"Servicios",null,null,"Comisiones",null,null,"Pagos por prestaciones sociales",null,null,"Viáticos",null,null,"Pagos por gastos de representación","Pagos por compensaciones por el trabajo asociado cooperativo","Otros pagos",null,null,"Cesantías e intereses de cesantías efectivamente pagadas, consignadas o reconocidas en elperíodo",null,null,"Cesantías consignadas al fondo de cesantías","Pensiones de jubilación, vejez o invalidez"]
[null,null,"Salarios",null,null,null,null,null,"Emolumentos eclesiásticos"]
["Detalle",null,"Salario días laborados","Auxilio de incapacidad","Horas extra y recargos","Comisiones","Bonificaciones salariales","Otros pagos que constituyen salario",null,null,"Pagos realizados a una persona natural que presta servicios médicos","Pagos realizados a una persona natural que presta servicios contables","Pagos realizados a una persona natural que presta servicios jurídicos","Mantenimiento de instalaciones","Jardinería","Vigilancia","Contratos de mandato","Ventas","Ejecución de actos","Prima de servicios","Vacaciones","Dotación","Gastos de transporte","Manutención","Alojamiento",null,null,"Auxilios extralegales","Bonificaciones ocasionales y por mera liberalidad","Otros pagos","Cesantías pagadas al trabajador en el período (con régimen posterior a la Ley 50 de 1990)","Intereses a las cesantías, pagadas al trabajador en el período","Cesantías reconocidas en el período para aquellos trabajadores del régimen tradicional (con régimen anterior a la Ley 50 de 1990)","Cesantías abonadas al fondo en el período (con régimen posterior a la Ley 50 de 1990)","Jubilación","Vejez","Invalidez"]
["Ir a Nota 1",null,"Ir a Nota 2",null,null,null,null,null,"Ir a Nota 3",null,"Ir a Nota 4",null,null,"Ir a Nota 5",null,null,null,null,null,null,null,null,null,null,null,null,null,"Ir a Nota 6",null,null,"Ir a Nota 7"]
["ID","Número de identificación","Salario días laborados","Auxilio de incapacidad","Horas extra y recargos","Comisiones","Bonificaciones salariales","Otros pagos que constituyen salario","Emolumentos eclesiásticos","Pagos realizados con bonos electrónicos o de papel de servicio, cheques, tarjetas, vales, etc.","Pagos realizados a una persona natural que presta servicios médicos","Pagos realizados a una persona natural que presta servicios contables","Pagos realizados a una persona natural que presta servicios jurídicos","Mantenimiento de instalaciones","Jardinería","Vigilancia","Contratos de mandato","Ventas","Ejecución de actos","Prima de servicios","Vacaciones","Dotación","Gastos de transporte","Manutención","Alojamiento","Pagos por gastos de representación","Pagos por compensaciones por el trabajo asociado cooperativo","Auxilios extralegales","Bonificaciones ocasionales y por mera liberalidad","Otros pagos","Cesantías pagadas al trabajador en el período (con régimen posterior a la Ley 50 de 1990)","Intereses a las cesantías pagadas al trabajador en el período","Cesantías reconocidas en el período para aquellos trabajadores del régimen tradicional (con régimen anterior a la Ley 50 de 1990)","Cesantías abonadas al fondo en el período (con régimen posterior a la Ley 50 de 1990)","Jubilación","Vejez","Invalidez"]
[{"$f":"'Datos iniciales'!A11","v":1},{"$f":"'Datos iniciales'!C11","v":1044140584},18103000,null,null,4500000,null,null,null,null,null,null,null,null,null,null,null,null,null,null,null,null,null,null,null,null,null,null,null,4500000]
[{"$f":"'Datos iniciales'!A12","v":2},{"$f":"'Datos iniciales'!C12","v":31960555},40000000,null,null,null,null,null,null,null,null,null,null,null,null,null,null,null,null,null,null,null,null,null,null,null,null,null,null,null,3000000,360000]
[{"$f":"'Datos iniciales'!A13","v":3},{"$f":"'Datos iniciales'!C13","v":0}]
[{"$f":"'Datos iniciales'!A14","v":4},{"$f":"'Datos iniciales'!C14","v":0}]
[{"$f":"'Datos iniciales'!A15","v":5},{"$f":"'Datos iniciales'!C15","v":0}]
[{"$f":"'Datos iniciales'!A16","v":6},{"$f":"'Datos iniciales'!C16","v":0}]
[{"$f":"'Datos iniciales'!A17","v":7},{"$f":"'Datos iniciales'!C17","v":0}]
[{"$f":"'Datos iniciales'!A18","v":8},{"$f":"'Datos iniciales'!C18","v":0}]
[{"$f":"'Datos iniciales'!A19","v":9},{"$f":"'Datos iniciales'!C19","v":0}]
[{"$f":"'Datos iniciales'!A20","v":10},{"$f":"'Datos iniciales'!C20","v":0}]
[{"$f":"'Datos iniciales'!A21","v":11},{"$f":"'Datos iniciales'!C21","v":0}]
[{"$f":"'Datos iniciales'!A22","v":12},{"$f":"'Datos iniciales'!C22","v":0}]
[{"$f":"'Datos iniciales'!A23","v":13},{"$f":"'Datos iniciales'!C23","v":0}]
[{"$f":"'Datos iniciales'!A24","v":14},{"$f":"'Datos iniciales'!C24","v":0}]
[{"$f":"'Datos iniciales'!A25","v":15},{"$f":"'Datos iniciales'!C25","v":0}]
[{"$f":"'Datos iniciales'!A26","v":16},{"$f":"'Datos iniciales'!C26","v":0}]
[{"$f":"'Datos iniciales'!A27","v":17},{"$f":"'Datos iniciales'!C27","v":0}]
[{"$f":"'Datos iniciales'!A28","v":18},{"$f":"'Datos iniciales'!C28","v":0}]
[{"$f":"'Datos iniciales'!A29","v":19},{"$f":"'Datos iniciales'!C29","v":0}]
[{"$f":"'Datos iniciales'!A30","v":20},{"$f":"'Datos iniciales'!C30","v":0}]

{"sheet":"Aportes","index":6,"n_rows":33,"n_cols":12,"rows_kept":33,"cut":false,"hidden":false,"merged":[[5,0,6,11],[8,11,10,11],[8,10,10,10],[9,0,10,0],[7,2,10,2],[7,3,10,3],[7,6,7,8],[8,4,9,4],[8,6,8,8],[7,1,10,1],[9,8,10,8],[7,4,7,5],[8,5,10,5],[9,7,10,7],[8,9,10,9]]}
[]
[]
[]
[]
[]
["APORTES"]
[]
["Renglón","Número de identificación","Excedente de pagos que hacen parte de la base de cotización","Base de cotización",50,null,51,null,null,52,53,54]
["Concepto",null,null,null,"Aportes obligatorios por salud a cargo del trabajador dependiente","Aportes obligatorios por salud a cargo del trabajador independiente","Aportes obligatorios a fondos de pensiones y solidaridad pensional a cargo del trabajador",null,null,"Cotizaciones voluntarias al régimen de ahorro individual con solidaridad –RAIS–","Aportes voluntarios al fondo de pensiones voluntarias","Aportes a cuentas AFC"]
["Detalle",null,null,null,null,null,"Aportes obligatorios al fondo de pensiones a cargo del trabajador dependiente","Aportes obligatorios al fondo de pensiones a cargo del trabajador independiente","Fondo de solidaridad pensional"]
[null,null,null,null,0.04,null,0.04]
["Ir a Nota 1",null,null,null,"Ir a Nota 2","Ir a Nota 3","Ir a Nota 4","Ir a Nota 5","Ir a Nota 6","Ir a Nota 7","Ir a Nota 8","Ir a Nota 9"]
["ID","Número de identificación","Excedente de pagos que hacen parte de la base de cotización","Base de cotización","Aportes obligatorios por salud a cargo del trabajador dependiente","Aportes obligatorios por salud a cargo del trabajador independiente","Aportes obligatorios al fondo de pensiones a cargo del trabajador dependiente","Aportes obligatorios al fondo de pensiones a cargo del trabajador independiente","Fondo de solidaridad pensional","Cotizaciones voluntarias al régimen de ahorro individual con solidaridad –RAIS–","Aportes voluntarios al fondo de pensiones voluntarias","Aportes a cuentas AFC"]
[{"$f":"'Datos iniciales'!A11","v":1},{"$f":"'Datos iniciales'!C11","v":1044140584},{"$f":"IF((Ingresos!W14+Ingresos!Z14+Ingresos!AB14+Ingresos!AC14+Ingresos!AD14)>((Ingresos!C14+Ingresos!D14+Ingresos!E14+Ingresos!F14+Ingresos!G14+Ingresos!H14+Ingresos!X14+Ingresos!Y14+Ingresos!W14+Ingresos!Z14+Ingresos!AB14+Ingresos!AC14+Ingresos!AD14)*40%),(Ingresos!W14+Ingresos!Z14+Ingresos!AB14+Ingresos!AC14+Ingresos!AD14)-((Ingresos!C14+Ingresos!D14+Ingresos!E14+Ingresos!F14+Ingresos!G14+Ingresos!H14+Ingresos!X14+Ingresos!Y14+Ingresos!W14+Ingresos!Z14+Ingresos!AB14+Ingresos!AC14+Ingresos!AD14)*40%),0)","v":0},{"$f":"C14+Ingresos!C14+Ingresos!D14+Ingresos!E14+Ingresos!F14+Ingresos!G14+Ingresos!H14+Ingresos!X14+Ingresos!Y14","v":22603000},{"$f":"D14*$E$11","v":904120},null,{"$f":"D14*$G$11","v":904120}]
[{"$f":"'Datos iniciales'!A12","v":2},{"$f":"'Datos iniciales'!C12","v":31960555},{"$f":"IF((Ingresos!W15+Ingresos!Z15+Ingresos!AB15+Ingresos!AC15+Ingresos!AD15)>((Ingresos!C15+Ingresos!D15+Ingresos!E15+Ingresos!F15+Ingresos!G15+Ingresos!H15+Ingresos!X15+Ingresos!Y15+Ingresos!W15+Ingresos!Z15+Ingresos!AB15+Ingresos!AC15+Ingresos!AD15)*40%),(Ingresos!W15+Ingresos!Z15+Ingresos!AB15+Ingresos!AC15+Ingresos!AD15)-((Ingresos!C15+Ingresos!D15+Ingresos!E15+Ingresos!F15+Ingresos!G15+Ingresos!H15+Ingresos!X15+Ingresos!Y15+Ingresos!W15+Ingresos!Z15+Ingresos!AB15+Ingresos!AC15+Ingresos!AD15)*40%),0)","v":0},{"$f":"C15+Ingresos!C15+Ingresos!D15+Ingresos!E15+Ingresos!F15+Ingresos!G15+Ingresos!H15+Ingresos!X15+Ingresos!Y15","v":40000000},{"$f":"D15*$E$11","v":1600000},null,{"$f":"D15*$G$11","v":1600000},null,null,null,null,1000000]
[{"$f":"'Datos iniciales'!A13","v":3},{"$f":"'Datos iniciales'!C13","v":0},{"$f":"IF((Ingresos!W16+Ingresos!Z16+Ingresos!AB16+Ingresos!AC16+Ingresos!AD16)>((Ingresos!C16+Ingresos!D16+Ingresos!E16+Ingresos!F16+Ingresos!G16+Ingresos!H16+Ingresos!X16+Ingresos!Y16+Ingresos!W16+Ingresos!Z16+Ingresos!AB16+Ingresos!AC16+Ingresos!AD16)*40%),(Ingresos!W16+Ingresos!Z16+Ingresos!AB16+Ingresos!AC16+Ingresos!AD16)-((Ingresos!C16+Ingresos!D16+Ingresos!E16+Ingresos!F16+Ingresos!G16+Ingresos!H16+Ingresos!X16+Ingresos!Y16+Ingresos!W16+Ingresos!Z16+Ingresos!AB16+Ingresos!AC16+Ingresos!AD16)*40%),0)","v":0},{"$f":"C16+Ingresos!C16+Ingresos!D16+Ingresos!E16+Ingresos!F16+Ingresos!G16+Ingresos!H16+Ingresos!X16+Ingresos!Y16","v":0},{"$f":"D16*$E$11","v":0},null,{"$f":"D16*$G$11","v":0}]
[{"$f":"'Datos iniciales'!A14","v":4},{"$f":"'Datos iniciales'!C14","v":0},{"$f":"IF((Ingresos!W17+Ingresos!Z17+Ingresos!AB17+Ingresos!AC17+Ingresos!AD17)>((Ingresos!C17+Ingresos!D17+Ingresos!E17+Ingresos!F17+Ingresos!G17+Ingresos!H17+Ingresos!X17+Ingresos!Y17+Ingresos!W17+Ingresos!Z17+Ingresos!AB17+Ingresos!AC17+Ingresos!AD17)*40%),(Ingresos!W17+Ingresos!Z17+Ingresos!AB17+Ingresos!AC17+Ingresos!AD17)-((Ingresos!C17+Ingresos!D17+Ingresos!E17+Ingresos!F17+Ingresos!G17+Ingresos!H17+Ingresos!X17+Ingresos!Y17+Ingresos!W17+Ingresos!Z17+Ingresos!AB17+Ingresos!AC17+Ingresos!AD17)*40%),0)","v":0},{"$f":"C17+Ingresos!C17+Ingresos!D17+Ingresos!E17+Ingresos!F17+Ingresos!G17+Ingresos!H17+Ingresos!X17+Ingresos!Y17","v":0},0,null,0]
[{"$f":"'Datos iniciales'!A15","v":5},{"$f":"'Datos iniciales'!C15","v":0},{"$f":"IF((Ingresos!W18+Ingresos!Z18+Ingresos!AB18+Ingresos!AC18+Ingresos!AD18)>((Ingresos!C18+Ingresos!D18+Ingresos!E18+Ingresos!F18+Ingresos!G18+Ingresos!H18+Ingresos!X18+Ingresos!Y18+Ingresos!W18+Ingresos!Z18+Ingresos!AB18+Ingresos!AC18+Ingresos!AD18)*40%),(Ingresos!W18+Ingresos!Z18+Ingresos!AB18+Ingresos!AC18+Ingresos!AD18)-((Ingresos!C18+Ingresos!D18+Ingresos!E18+Ingresos!F18+Ingresos!G18+Ingresos!H18+Ingresos!X18+Ingresos!Y18+Ingresos!W18+Ingresos!Z18+Ingresos!AB18+Ingresos!AC18+Ingresos!AD18)*40%),0)","v":0},{"$f":"C18+Ingresos!C18+Ingresos!D18+Ingresos!E18+Ingresos!F18+Ingresos!G18+Ingresos!H18+Ingresos!X18+Ingresos!Y18","v":0},0,null,0]
[{"$f":"'Datos iniciales'!A16","v":6},{"$f":"'Datos iniciales'!C16","v":0},{"$f":"IF((Ingresos!W19+Ingresos!Z19+Ingresos!AB19+Ingresos!AC19+Ingresos!AD19)>((Ingresos!C19+Ingresos!D19+Ingresos!E19+Ingresos!F19+Ingresos!G19+Ingresos!H19+Ingresos!X19+Ingresos!Y19+Ingresos!W19+Ingresos!Z19+Ingresos!AB19+Ingresos!AC19+Ingresos!AD19)*40%),(Ingresos!W19+Ingresos!Z19+Ingresos!AB19+Ingresos!AC19+Ingresos!AD19)-((Ingresos!C19+Ingresos!D19+Ingresos!E19+Ingresos!F19+Ingresos!G19+Ingresos!H19+Ingresos!X19+Ingresos!Y19+Ingresos!W19+Ingresos!Z19+Ingresos!AB19+Ingresos!AC19+Ingresos!AD19)*40%),0)","v":0},{"$f":"C19+Ingresos!C19+Ingresos!D19+Ingresos!E19+Ingresos!F19+Ingresos!G19+Ingresos!H19+Ingresos!X19+Ingresos!Y19","v":0},0,null,0]
[{"$f":"'Datos iniciales'!A17","v":7},{"$f":"'Datos iniciales'!C17","v":0},{"$f":"IF((Ingresos!W20+Ingresos!Z20+Ingresos!AB20+Ingresos!AC20+Ingresos!AD20)>((Ingresos!C20+Ingresos!D20+Ingresos!E20+Ingresos!F20+Ingresos!G20+Ingresos!H20+Ingresos!X20+Ingresos!Y20+Ingresos!W20+Ingresos!Z20+Ingresos!AB20+Ingresos!AC20+Ingresos!AD20)*40%),(Ingresos!W20+Ingresos!Z20+Ingresos!AB20+Ingresos!AC20+Ingresos!AD20)-((Ingresos!C20+Ingresos!D20+Ingresos!E20+Ingresos!F20+Ingresos!G20+Ingresos!H20+Ingresos!X20+Ingresos!Y20+Ingresos!W20+Ingresos!Z20+Ingresos!AB20+Ingresos!AC20+Ingresos!AD20)*40%),0)","v":0},{"$f":"C20+Ingresos!C20+Ingresos!D20+Ingresos!E20+Ingresos!F20+Ingresos!G20+Ingresos!H20+Ingresos!X20+Ingresos!Y20","v":0},0,null,0]
[{"$f":"'Datos iniciales'!A18","v":8},{"$f":"'Datos iniciales'!C18","v":0},{"$f":"IF((Ingresos!W21+Ingresos!Z21+Ingresos!AB21+Ingresos!AC21+Ingresos!AD21)>((Ingresos!C21+Ingresos!D21+Ingresos!E21+Ingresos!F21+Ingresos!G21+Ingresos!H21+Ingresos!X21+Ingresos!Y21+Ingresos!W21+Ingresos!Z21+Ingresos!AB21+Ingresos!AC21+Ingresos!AD21)*40%),(Ingresos!W21+Ingresos!Z21+Ingresos!AB21+Ingresos!AC21+Ingresos!AD21)-((Ingresos!C21+Ingresos!D21+Ingresos!E21+Ingresos!F21+Ingresos!G21+Ingresos!H21+Ingresos!X21+Ingresos!Y21+Ingresos!W21+Ingresos!Z21+Ingresos!AB21+Ingresos!AC21+Ingresos!AD21)*40%),0)","v":0},{"$f":"C21+Ingresos!C21+Ingresos!D21+Ingresos!E21+Ingresos!F21+Ingresos!G21+Ingresos!H21+Ingresos!X21+Ingresos!Y21","v":0},0,null,0]
[{"$f":"'Datos iniciales'!A19","v":9},{"$f":"'Datos iniciales'!C19","v":0},{"$f":"IF((Ingresos!W22+Ingresos!Z22+Ingresos!AB22+Ingresos!AC22+Ingresos!AD22)>((Ingresos!C22+Ingresos!D22+Ingresos!E22+Ingresos!F22+Ingresos!G22+Ingresos!H22+Ingresos!X22+Ingresos!Y22+Ingresos!W22+Ingresos!Z22+Ingresos!AB22+Ingresos!AC22+Ingresos!AD22)*40%),(Ingresos!W22+Ingresos!Z22+Ingresos!AB22+Ingresos!AC22+Ingresos!AD22)-((Ingresos!C22+Ingresos!D22+Ingresos!E22+Ingresos!F22+Ingresos!G22+Ingresos!H22+Ingresos!X22+Ingresos!Y22+Ingresos!W22+Ingresos!Z22+Ingresos!AB22+Ingresos!AC22+Ingresos!AD22)*40%),0)","v":0},{"$f":"C22+Ingresos!C22+Ingresos!D22+Ingresos!E22+Ingresos!F22+Ingresos!G22+Ingresos!H22+Ingresos!X22+Ingresos!Y22","v":0},0,null,0]
[{"$f":"'Datos iniciales'!A20","v":10},{"$f":"'Datos iniciales'!C20","v":0},{"$f":"IF((Ingresos!W23+Ingresos!Z23+Ingresos!AB23+Ingresos!AC23+Ingresos!AD23)>((Ingresos!C23+Ingresos!D23+Ingresos!E23+Ingresos!F23+Ingresos!G23+Ingresos!H23+Ingresos!X23+Ingresos!Y23+Ingresos!W23+Ingresos!Z23+Ingresos!AB23+Ingresos!AC23+Ingresos!AD23)*40%),(Ingresos!W23+Ingresos!Z23+Ingresos!AB23+Ingresos!AC23+Ingresos!AD23)-((Ingresos!C23+Ingresos!D23+Ingresos!E23+Ingresos!F23+Ingresos!G23+Ingresos!H23+Ingresos!X23+Ingresos!Y23+Ingresos!W23+Ingresos!Z23+Ingresos!AB23+Ingresos!AC23+Ingresos!AD23)*40%),0)","v":0},{"$f":"C23+Ingresos!C23+Ingresos!D23+Ingresos!E23+Ingresos!F23+Ingresos!G23+Ingresos!H23+Ingresos!X23+Ingresos!Y23","v":0},0,null,0]
[{"$f":"'Datos iniciales'!A21","v":11},{"$f":"'Datos iniciales'!C21","v":0},{"$f":"IF((Ingresos!W24+Ingresos!Z24+Ingresos!AB24+Ingresos!AC24+Ingresos!AD24)>((Ingresos!C24+Ingresos!D24+Ingresos!E24+Ingresos!F24+Ingresos!G24+Ingresos!H24+Ingresos!X24+Ingresos!Y24+Ingresos!W24+Ingresos!Z24+Ingresos!AB24+Ingresos!AC24+Ingresos!AD24)*40%),(Ingresos!W24+Ingresos!Z24+Ingresos!AB24+Ingresos!AC24+Ingresos!AD24)-((Ingresos!C24+Ingresos!D24+Ingresos!E24+Ingresos!F24+Ingresos!G24+Ingresos!H24+Ingresos!X24+Ingresos!Y24+Ingresos!W24+Ingresos!Z24+Ingresos!AB24+Ingresos!AC24+Ingresos!AD24)*40%),0)","v":0},{"$f":"C24+Ingresos!C24+Ingresos!D24+Ingresos!E24+Ingresos!F24+Ingresos!G24+Ingresos!H24+Ingresos!X24+Ingresos!Y24","v":0},{"$f":"D24*$E$11","v":0},null,{"$f":"D24*$G$11","v":0}]
[{"$f":"'Datos iniciales'!A22","v":12},{"$f":"'Datos iniciales'!C22","v":0},{"$f":"IF((Ingresos!W25+Ingresos!Z25+Ingresos!AB25+Ingresos!AC25+Ingresos!AD25)>((Ingresos!C25+Ingresos!D25+Ingresos!E25+Ingresos!F25+Ingresos!G25+Ingresos!H25+Ingresos!X25+Ingresos!Y25+Ingresos!W25+Ingresos!Z25+Ingresos!AB25+Ingresos!AC25+Ingresos!AD25)*40%),(Ingresos!W25+Ingresos!Z25+Ingresos!AB25+Ingresos!AC25+Ingresos!AD25)-((Ingresos!C25+Ingresos!D25+Ingresos!E25+Ingresos!F25+Ingresos!G25+Ingresos!H25+Ingresos!X25+Ingresos!Y25+Ingresos!W25+Ingresos!Z25+Ingresos!AB25+Ingresos!AC25+Ingresos!AD25)*40%),0)","v":0},{"$f":"C25+Ingresos!C25+Ingresos!D25+Ingresos!E25+Ingresos!F25+Ingresos!G25+Ingresos!H25+Ingresos!X25+Ingresos!Y25","v":0},0,null,0]
[{"$f":"'Datos iniciales'!A23","v":13},{"$f":"'Datos iniciales'!C23","v":0},{"$f":"IF((Ingresos!W26+Ingresos!Z26+Ingresos!AB26+Ingresos!AC26+Ingresos!AD26)>((Ingresos!C26+Ingresos!D26+Ingresos!E26+Ingresos!F26+Ingresos!G26+Ingresos!H26+Ingresos!X26+Ingresos!Y26+Ingresos!W26+Ingresos!Z26+Ingresos!AB26+Ingresos!AC26+Ingresos!AD26)*40%),(Ingresos!W26+Ingresos!Z26+Ingresos!AB26+Ingresos!AC26+Ingresos!AD26)-((Ingresos!C26+Ingresos!D26+Ingresos!E26+Ingresos!F26+Ingresos!G26+Ingresos!H26+Ingresos!X26+Ingresos!Y26+Ingresos!W26+Ingresos!Z26+Ingresos!AB26+Ingresos!AC26+Ingresos!AD26)*40%),0)","v":0},{"$f":"C26+Ingresos!C26+Ingresos!D26+Ingresos!E26+Ingresos!F26+Ingresos!G26+Ingresos!H26+Ingresos!X26+Ingresos!Y26","v":0},0,null,0]
[{"$f":"'Datos iniciales'!A24","v":14},{"$f":"'Datos iniciales'!C24","v":0},{"$f":"IF((Ingresos!W27+Ingresos!Z27+Ingresos!AB27+Ingresos!AC27+Ingresos!AD27)>((Ingresos!C27+Ingresos!D27+Ingresos!E27+Ingresos!F27+Ingresos!G27+Ingresos!H27+Ingresos!X27+Ingresos!Y27+Ingresos!W27+Ingresos!Z27+Ingresos!AB27+Ingresos!AC27+Ingresos!AD27)*40%),(Ingresos!W27+Ingresos!Z27+Ingresos!AB27+Ingresos!AC27+Ingresos!AD27)-((Ingresos!C27+Ingresos!D27+Ingresos!E27+Ingresos!F27+Ingresos!G27+Ingresos!H27+Ingresos!X27+Ingresos!Y27+Ingresos!W27+Ingresos!Z27+Ingresos!AB27+Ingresos!AC27+Ingresos!AD27)*40%),0)","v":0},{"$f":"C27+Ingresos!C27+Ingresos!D27+Ingresos!E27+Ingresos!F27+Ingresos!G27+Ingresos!H27+Ingresos!X27+Ingresos!Y27","v":0},0,null,0]
[{"$f":"'Datos iniciales'!A25","v":15},{"$f":"'Datos iniciales'!C25","v":0},{"$f":"IF((Ingresos!W28+Ingresos!Z28+Ingresos!AB28+Ingresos!AC28+Ingresos!AD28)>((Ingresos!C28+Ingresos!D28+Ingresos!E28+Ingresos!F28+Ingresos!G28+Ingresos!H28+Ingresos!X28+Ingresos!Y28+Ingresos!W28+Ingresos!Z28+Ingresos!AB28+Ingresos!AC28+Ingresos!AD28)*40%),(Ingresos!W28+Ingresos!Z28+Ingresos!AB28+Ingresos!AC28+Ingresos!AD28)-((Ingresos!C28+Ingresos!D28+Ingresos!E28+Ingresos!F28+Ingresos!G28+Ingresos!H28+Ingresos!X28+Ingresos!Y28+Ingresos!W28+Ingresos!Z28+Ingresos!AB28+Ingresos!AC28+Ingresos!AD28)*40%),0)","v":0},{"$f":"C28+Ingresos!C28+Ingresos!D28+Ingresos!E28+Ingresos!F28+Ingresos!G28+Ingresos!H28+Ingresos!X28+Ingresos!Y28","v":0},0,null,0]
[{"$f":"'Datos iniciales'!A26","v":16},{"$f":"'Datos iniciales'!C26","v":0},{"$f":"IF((Ingresos!W29+Ingresos!Z29+Ingresos!AB29+Ingresos!AC29+Ingresos!AD29)>((Ingresos!C29+Ingresos!D29+Ingresos!E29+Ingresos!F29+Ingresos!G29+Ingresos!H29+Ingresos!X29+Ingresos!Y29+Ingresos!W29+Ingresos!Z29+Ingresos!AB29+Ingresos!AC29+Ingresos!AD29)*40%),(Ingresos!W29+Ingresos!Z29+Ingresos!AB29+Ingresos!AC29+Ingresos!AD29)-((Ingresos!C29+Ingresos!D29+Ingresos!E29+Ingresos!F29+Ingresos!G29+Ingresos!H29+Ingresos!X29+Ingresos!Y29+Ingresos!W29+Ingresos!Z29+Ingresos!AB29+Ingresos!AC29+Ingresos!AD29)*40%),0)","v":0},{"$f":"C29+Ingresos!C29+Ingresos!D29+Ingresos!E29+Ingresos!F29+Ingresos!G29+Ingresos!H29+Ingresos!X29+Ingresos!Y29","v":0},0,null,0]
[{"$f":"'Datos iniciales'!A27","v":17},{"$f":"'Datos iniciales'!C27","v":0},{"$f":"IF((Ingresos!W30+Ingresos!Z30+Ingresos!AB30+Ingresos!AC30+Ingresos!AD30)>((Ingresos!C30+Ingresos!D30+Ingresos!E30+Ingresos!F30+Ingresos!G30+Ingresos!H30+Ingresos!X30+Ingresos!Y30+Ingresos!W30+Ingresos!Z30+Ingresos!AB30+Ingresos!AC30+Ingresos!AD30)*40%),(Ingresos!W30+Ingresos!Z30+Ingresos!AB30+Ingresos!AC30+Ingresos!AD30)-((Ingresos!C30+Ingresos!D30+Ingresos!E30+Ingresos!F30+Ingresos!G30+Ingresos!H30+Ingresos!X30+Ingresos!Y30+Ingresos!W30+Ingresos!Z30+Ingresos!AB30+Ingresos!AC30+Ingresos!AD30)*40%),0)","v":0},{"$f":"C30+Ingresos!C30+Ingresos!D30+Ingresos!E30+Ingresos!F30+Ingresos!G30+Ingresos!H30+Ingresos!X30+Ingresos!Y30","v":0},0,null,0]
[{"$f":"'Datos iniciales'!A28","v":18},{"$f":"'Datos iniciales'!C28","v":0},{"$f":"IF((Ingresos!W31+Ingresos!Z31+Ingresos!AB31+Ingresos!AC31+Ingresos!AD31)>((Ingresos!C31+Ingresos!D31+Ingresos!E31+Ingresos!F31+Ingresos!G31+Ingresos!H31+Ingresos!X31+Ingresos!Y31+Ingresos!W31+Ingresos!Z31+Ingresos!AB31+Ingresos!AC31+Ingresos!AD31)*40%),(Ingresos!W31+Ingresos!Z31+Ingresos!AB31+Ingresos!AC31+Ingresos!AD31)-((Ingresos!C31+Ingresos!D31+Ingresos!E31+Ingresos!F31+Ingresos!G31+Ingresos!H31+Ingresos!X31+Ingresos!Y31+Ingresos!W31+Ingresos!Z31+Ingresos!AB31+Ingresos!AC31+Ingresos!AD31)*40%),0)","v":0},{"$f":"C31+Ingresos!C31+Ingresos!D31+Ingresos!E31+Ingresos!F31+Ingresos!G31+Ingresos!H31+Ingresos!X31+Ingresos!Y31","v":0},0,null,0]
[{"$f":"'Datos iniciales'!A29","v":19},{"$f":"'Datos iniciales'!C29","v":0},{"$f":"IF((Ingresos!W32+Ingresos!Z32+Ingresos!AB32+Ingresos!AC32+Ingresos!AD32)>((Ingresos!C32+Ingresos!D32+Ingresos!E32+Ingresos!F32+Ingresos!G32+Ingresos!H32+Ingresos!X32+Ingresos!Y32+Ingresos!W32+Ingresos!Z32+Ingresos!AB32+Ingresos!AC32+Ingresos!AD32)*40%),(Ingresos!W32+Ingresos!Z32+Ingresos!AB32+Ingresos!AC32+Ingresos!AD32)-((Ingresos!C32+Ingresos!D32+Ingresos!E32+Ingresos!F32+Ingresos!G32+Ingresos!H32+Ingresos!X32+Ingresos!Y32+Ingresos!W32+Ingresos!Z32+Ingresos!AB32+Ingresos!AC32+Ingresos!AD32)*40%),0)","v":0},{"$f":"C32+Ingresos!C32+Ingresos!D32+Ingresos!E32+Ingresos!F32+Ingresos!G32+Ingresos!H32+Ingresos!X32+Ingresos!Y32","v":0},0,null,0]
[{"$f":"'Datos iniciales'!A30","v":20},{"$f":"'Datos iniciales'!C30","v":0},{"$f":"IF((Ingresos!W33+Ingresos!Z33+Ingresos!AB33+Ingresos!AC33+Ingresos!AD33)>((Ingresos!C33+Ingresos!D33+Ingresos!E33+Ingresos!F33+Ingresos!G33+Ingresos!H33+Ingresos!X33+Ingresos!Y33+Ingresos!W33+Ingresos!Z33+Ingresos!AB33+Ingresos!AC33+Ingresos!AD33)*40%),(Ingresos!W33+Ingresos!Z33+Ingresos!AB33+Ingresos!AC33+Ingresos!AD33)-((Ingresos!C33+Ingresos!D33+Ingresos!E33+Ingresos!F33+Ingresos!G33+Ingresos!H33+Ingresos!X33+Ingresos!Y33+Ingresos!W33+Ingresos!Z33+Ingresos!AB33+Ingresos!AC33+Ingresos!AD33)*40%),0)","v":0},{"$f":"C33+Ingresos!C33+Ingresos!D33+Ingresos!E33+Ingresos!F33+Ingresos!G33+Ingresos!H33+Ingresos!X33+Ingresos!Y33","v":0},0,null,0]

{"sheet":"Retenciones","index":7,"n_rows":30,"n_cols":4,"rows_kept":30,"cut":false,"hidden":false,"merged":[[7,2,7,3],[5,0,6,3]]}
[]
[]
[]
[]
[]
["RETENCIONES"]
[]
["Renglón",null,55]
["Ir a Nota 1",null,"Ir a Nota 2","Ir a Nota 3"]
["ID","Número de identificación","Retención por rentas de trabajo","Retención por rentas de pensiones"]
[{"$f":"'Datos iniciales'!A11","v":1},{"$f":"'Datos iniciales'!C11","v":1044140584}]
[{"$f":"'Datos iniciales'!A12","v":2},{"$f":"'Datos iniciales'!C12","v":31960555},338000]
[{"$f":"'Datos iniciales'!A13","v":3},{"$f":"'Datos iniciales'!C13","v":0}]
[{"$f":"'Datos iniciales'!A14","v":4},{"$f":"'Datos iniciales'!C14","v":0}]
[{"$f":"'Datos iniciales'!A15","v":5},{"$f":"'Datos iniciales'!C15","v":0}]
[{"$f":"'Datos iniciales'!A16","v":6},{"$f":"'Datos iniciales'!C16","v":0}]
[{"$f":"'Datos iniciales'!A17","v":7},{"$f":"'Datos iniciales'!C17","v":0}]
[{"$f":"'Datos iniciales'!A18","v":8},{"$f":"'Datos iniciales'!C18","v":0}]
[{"$f":"'Datos iniciales'!A19","v":9},{"$f":"'Datos iniciales'!C19","v":0}]
[{"$f":"'Datos iniciales'!A20","v":10},{"$f":"'Datos iniciales'!C20","v":0}]
[{"$f":"'Datos iniciales'!A21","v":11},{"$f":"'Datos iniciales'!C21","v":0}]
[{"$f":"'Datos iniciales'!A22","v":12},{"$f":"'Datos iniciales'!C22","v":0}]
[{"$f":"'Datos iniciales'!A23","v":13},{"$f":"'Datos iniciales'!C23","v":0}]
[{"$f":"'Datos iniciales'!A24","v":14},{"$f":"'Datos iniciales'!C24","v":0}]
[{"$f":"'Datos iniciales'!A25","v":15},{"$f":"'Datos iniciales'!C25","v":0}]
[{"$f":"'Datos iniciales'!A26","v":16},{"$f":"'Datos iniciales'!C26","v":0}]
[{"$f":"'Datos iniciales'!A27","v":17},{"$f":"'Datos iniciales'!C27","v":0}]
[{"$f":"'Datos iniciales'!A28","v":18},{"$f":"'Datos iniciales'!C28","v":0}]
[{"$f":"'Datos iniciales'!A29","v":19},{"$f":"'Datos iniciales'!C29","v":0}]
[{"$f":"'Datos iniciales'!A30","v":20},{"$f":"'Datos iniciales'!C30","v":0}]

{"sheet":"F220","index":8,"n_rows":68,"n_cols":58,"rows_kept":68,"cut":false,"hidden":false,"merged":[[1,53,1,54],[14,48,14,51],[13,48,13,51],[13,45,13,47],[13,29,13,44],[13,1,13,19],[5,29,5,51],[4,1,5,27],[7,42,7,51],[9,37,9,42],[9,48,9,51],[7,17,7,24],[7,25,7,35],[7,36,7,41],[10,2,10,51],[6,2,6,14],[6,17,6,24],[6,1,10,1],[11,19,11,27],[11,28,11,36],[11,37,11,42],[11,43,11,51],[11,2,11,6],[12,2,12,6],[1,11,3,41],[4,45,4,46],[4,43,4,44],[14,26,14,27],[13,20,13,28],[14,21,14,23],[14,24,14,25],[15,1,15,41],[14,12,14,14],[14,15,14,16],[14,17,14,18],[14,1,14,2],[14,10,14,11],[14,3,14,5],[14,6,14,7],[14,8,14,9],[11,1,12,1],[11,7,11,18],[12,7,12,18],[14,29,14,44],[14,45,14,47],[21,43,21,51],[22,1,22,41],[22,43,22,51],[23,43,23,51],[15,42,15,51],[16,1,16,41],[17,43,17,51],[16,43,16,51],[18,1,18,41],[18,43,18,51],[19,43,19,51],[20,1,20,41],[20,43,20,51],[17,1,17,41],[19,1,19,41],[21,1,21,41],[23,1,23,41],[28,43,28,51],[30,1,30,41],[30,42,30,51],[31,1,31,41],[31,43,31,51],[24,43,24,51],[25,43,25,51],[26,1,26,41],[26,43,26,51],[24,1,24,41],[25,1,25,41],[28,1,28,41],[29,1,29,41],[29,43,29,51],[27,1,27,41],[27,43,27,51],[45,1,45,35],[39,42,39,51],[39,36,39,41],[38,1,38,51],[39,1,39,35],[36,1,36,41],[36,43,36,51],[32,1,32,38],[32,43,32,51],[33,1,33,41],[33,43,33,51],[34,43,34,51],[34,1,34,41],[35,43,35,51],[35,1,35,41],[37,1,37,51],[48,43,48,51],[48,2,48,42],[47,1,47,41],[40,43,40,51],[41,43,41,51],[42,43,42,51],[43,43,43,51],[44,43,44,51],[45,43,45,51],[46,43,46,51],[47,43,47,51],[46,1,46,35],[40,37,40,41],[41,37,41,41],[42,37,42,41],[43,37,43,41],[44,37,44,41],[45,37,45,41],[46,37,46,41],[41,1,41,35],[40,1,40,35],[42,1,42,35],[43,1,43,35],[44,1,44,35],[52,2,52,42],[52,43,52,51],[53,2,53,42],[53,43,53,51],[54,2,54,42],[54,43,54,51],[49,2,49,42],[49,43,49,51],[50,2,50,42],[50,43,50,51],[51,2,51,42],[51,43,51,51],[57,45,57,51],[58,45,58,51],[55,43,55,51],[55,1,55,41],[56,1,56,51],[57,1,57,7],[58,1,58,7],[57,8,57,16],[58,8,58,16],[57,17,57,44],[58,17,58,44],[67,1,67,51],[59,39,66,51],[59,1,59,38],[60,1,60,38],[61,1,61,38],[62,1,62,38],[63,1,63,38],[64,1,64,38],[65,1,65,38],[66,1,66,38],[2,53,2,54],[14,53,14,54],[26,53,26,54],[30,53,30,54],[33,53,33,54],[39,53,39,54],[48,53,48,54],[67,53,67,54],[4,57,4,60]]}
[]
[null,null,null,null,null,null,null,null,null,null,null,"Certificado de Ingresos y Retenciones por Rentas de Trabajo y de Pensiones Año gravable 2022",null,null,null,null,null,null,null,null,null,null,null,null,null,null,null,null,null,null,null,null,null,null,null,null,null,null,null,null,null,null,null,null,null,null,null,null,null,null,null,null,null,"Ir a Nota 1"]
[]
[]
[null,"Antes de diligenciar este formulario lea cuidadosamente las instrucciones",null,null,null,null,null,null,null,null,null,null,null,null,null,null,null,null,null,null,null,null,null,null,null,null,null,null,"4. Número de Formulario",null,null,null,null,null,null,null,null,null,null,null,null,null,null,null,null,null,null,null,null,null,null,null,null,null,"ID",1,null,"Ir a Nota 2"]
[null,null,null,null,null,null,null,null,null,null,null,null,null,null,null,null,null,null,null,null,null,null,null,null,null,null,null,null,null,{"$f":"BD5","v":1}]
[null,"Retenedor","5. Numero de Identificacion Tributaria (NIT)",null,null,null,null,null,null,null,null,null,null,null,null,"6.","DV.","7. Primer Apellido",null,null,null,null,null,null,null,"8. Segundo Apellido",null,null,null,null,null,null,null,null,null,null,"9. Primer Nombre",null,null,null,null,null,"10. Otros Nombres",null,null,null,null,null,null,null,null,null,null,null,2,2]
[]
[]
[null,null,"11.  Razón Social"]
[null,null,null,null,null,null,null,1,6]
[null,"Trabajador","24. Tipo de documento",null,null,null,null,"25. Número de Identificación",null,null,null,null,null,null,null,null,null,null,null,{"$f":"VLOOKUP(AD6,'Datos iniciales'!$A$11:$J$508,4,FALSE)","v":"PrimeroA"},null,null,null,null,null,null,null,null,{"$f":"VLOOKUP(AD6,'Datos iniciales'!$A$11:$J$508,5,FALSE)","v":"SegundoA"},null,null,null,null,null,null,null,null,{"$f":"VLOOKUP(AD6,'Datos iniciales'!$A$11:$J$508,6,FALSE)","v":"NombreA"},null,null,null,null,null,{"$f":"VLOOKUP(AD6,'Datos iniciales'!$A$11:$J$508,7,FALSE)","v":"NombreB"}]
[null,null,{"$f":"VLOOKUP(AD6,'Datos iniciales'!$A$11:$J$508,2,FALSE)","v":13},null,null,null,null,{"$f":"VLOOKUP(AD6,'Datos iniciales'!$A$11:$J$508,3,FALSE)","v":1044140584},null,null,null,null,null,null,null,null,null,null,null,"26. Primer apellido",null,null,null,null,null,null,null,null,"27. Segundo apellido",null,null,null,null,null,null,null,null,"28. Primer nombre",null,null,null,null,null,"29. Otros nombres"]
[null,"Período de la Certificación",null,null,null,null,null,null,null,null,null,null,null,null,null,null,null,null,null,null,"32. Fecha de expedición",null,null,null,null,null,null,null,null,"33. Lugar donde se practicó la retención",null,null,null,null,null,null,null,null,null,null,null,null,null,null,null,"34. Cód. Dpto.",null,null,"35. Cód. Ciudad/Municipio"]
[null,"30. DE:",null,2022,null,null,1,null,1,null,"31. A:",null,2022,null,null,12,null,31,null,null,null,"AAAA",null,null,"MM",null,"DD",null,null,{"$f":"VLOOKUP(AD6,'Datos iniciales'!$A$11:$J$508,8,FALSE)","v":"Cali"},null,null,null,null,null,null,null,null,null,null,null,null,null,null,null,{"$f":"VLOOKUP(AD6,'Datos iniciales'!$A$11:$J$508,9,FALSE)","v":76},null,null,{"$f":"VLOOKUP(AD6,'Datos iniciales'!$A$11:$J$508,10,FALSE)","v":"001"},null,null,null,null,"Ir a Nota 3"]
[null,"Concepto de los Ingresos",null,null,null,null,null,null,null,null,null,null,null,null,null,null,null,null,null,null,null,null,null,null,null,null,null,null,null,null,null,null,null,null,null,null,null,null,null,null,null,null,"Valor"]
[null,"Pagos por salarios o emolumentos eclesiásticos",null,null,null,null,null,null,null,null,null,null,null,null,null,null,null,null,null,null,null,null,null,null,null,null,null,null,null,null,null,null,null,null,null,null,null,null,null,null,null,null,36,{"$f":"SUM(VLOOKUP(AD6,Ingresos!$A$14:$AK$519,{3;4;5;6;7;8;9},FALSE))","v":22603000}]
[null,"Pagos realizados con bonos electrónicos o de papel de servicio, cheques, tarjetas, vales, etc.",null,null,null,null,null,null,null,null,null,null,null,null,null,null,null,null,null,null,null,null,null,null,null,null,null,null,null,null,null,null,null,null,null,null,null,null,null,null,null,null,37,{"$f":"VLOOKUP(AD6,Ingresos!$A$14:$AK$519,10,FALSE)","v":0}]
[null,"Pagos por honorarios",null,null,null,null,null,null,null,null,null,null,null,null,null,null,null,null,null,null,null,null,null,null,null,null,null,null,null,null,null,null,null,null,null,null,null,null,null,null,null,null,38,{"$f":"SUM(VLOOKUP(AD6,Ingresos!$A$14:$AK$519,{11;12;13},FALSE))","v":0}]
[null,"Pagos por servicios","Impuesto de normalización tributaria",null,null,null,null,null,null,null,null,null,null,null,null,null,null,null,null,null,null,null,null,null,null,null,null,null,null,null,null,null,null,null,null,null,null,null,null,null,null,null,39,{"$f":"SUM(VLOOKUP(AD6,Ingresos!$A$14:$AK$519,{14;15;16},FALSE))","v":0}]
[null,"Pagos por comisiones",null,null,null,null,null,null,null,null,null,null,null,null,null,null,null,null,null,null,null,null,null,null,null,null,null,null,null,null,null,null,null,null,null,null,null,null,null,null,null,null,40,{"$f":"SUM(VLOOKUP(AD6,Ingresos!$A$14:$AK$519,{17;18;19},FALSE))","v":0}]
[null,"Pagos por prestaciones sociales","Saldo a pagar por impuesto (36 - 37)",null,null,null,null,null,null,null,null,null,null,null,null,null,null,null,null,null,null,null,null,null,null,null,null,null,null,null,null,null,null,null,null,null,null,null,null,null,null,null,41,{"$f":"SUM(VLOOKUP(AD6,Ingresos!$A$14:$AK$519,{20;21;22},FALSE))","v":0}]
[null,"Pagos por viáticos",null,null,null,null,null,null,null,null,null,null,null,null,null,null,null,null,null,null,null,null,null,null,null,null,null,null,null,null,null,null,null,null,null,null,null,null,null,null,null,null,42,{"$f":"SUM(VLOOKUP(AD6,Ingresos!$A$14:$AK$519,{23;24;25},FALSE))","v":0}]
[null,"Pagos por gastos de representación","Total saldo a pagar (38 + 39)",null,null,null,null,null,null,null,null,null,null,null,null,null,null,null,null,null,null,null,null,null,null,null,null,null,null,null,null,null,null,null,null,null,null,null,null,null,null,null,43,{"$f":"VLOOKUP(AD6,Ingresos!$A$14:$AK$519,26,FALSE)","v":0}]
[null,"Pagos por compensaciones por el trabajo asociado cooperativo",null,null,null,null,null,null,null,null,null,null,null,null,null,null,null,null,null,null,null,null,null,null,null,null,null,null,null,null,null,null,null,null,null,null,null,null,null,null,null,null,44,{"$f":"VLOOKUP(AD6,Ingresos!$A$14:$AK$519,27,FALSE)","v":0}]
[null,"Otros pagos",null,null,null,null,null,null,null,null,null,null,null,null,null,null,null,null,null,null,null,null,null,null,null,null,null,null,null,null,null,null,null,null,null,null,null,null,null,null,null,null,45,{"$f":"SUM(VLOOKUP(AD6,Ingresos!$A$14:$AK$519,{28;29;30},FALSE))","v":4500000}]
[null,"Cesantías e intereses de cesantías efectivamente pagadas en el periodo",null,null,null,null,null,null,null,null,null,null,null,null,null,null,null,null,null,null,null,null,null,null,null,null,null,null,null,null,null,null,null,null,null,null,null,null,null,null,null,null,46,{"$f":"SUM(VLOOKUP(AD6,Ingresos!$A$14:$AK$519,{31;32;33},FALSE))","v":0},null,null,null,null,null,null,null,null,null,"Ir a Nota 4"]
[null,"Cesantías consignadas al fondo de cesantías",null,null,null,null,null,null,null,null,null,null,null,null,null,null,null,null,null,null,null,null,null,null,null,null,null,null,null,null,null,null,null,null,null,null,null,null,null,null,null,null,47,{"$f":"SUM(VLOOKUP(AD6,Ingresos!$A$14:$AK$519,{34},FALSE))","v":0}]
[null,"Pensiones de jubilación, vejez o invalidez",null,null,null,null,null,null,null,null,null,null,null,null,null,null,null,null,null,null,null,null,null,null,null,null,null,null,null,null,null,null,null,null,null,null,null,null,null,null,null,null,48,{"$f":"SUM(VLOOKUP(AD6,Ingresos!$A$14:$AK$519,{35;36;37},FALSE))","v":0}]
[null,"Total de ingresos brutos (Sume 36 a 48)",null,null,null,null,null,null,null,null,null,null,null,null,null,null,null,null,null,null,null,null,null,null,null,null,null,null,null,null,null,null,null,null,null,null,null,null,null,null,null,null,49,{"$f":"SUM(AR17:AZ29)","v":27103000}]
[null,"Concepto de los aportes",null,null,null,null,null,null,null,null,null,null,null,null,null,null,null,null,null,null,null,null,null,null,null,null,null,null,null,null,null,null,null,null,null,null,null,null,null,null,null,null,"Valor",null,null,null,null,null,null,null,null,null,null,"Ir a Nota 5"]
[null,"Aportes obligatorios por salud a cargo del trabajador",null,null,null,null,null,null,null,null,null,null,null,null,null,null,null,null,null,null,null,null,null,null,null,null,null,null,null,null,null,null,null,null,null,null,null,null,null,null,null,null,50,{"$f":"SUM(VLOOKUP(AD6,Aportes!$A$14:$L$509,{5;6},FALSE))","v":904120}]
[null,"Aportes obligatorios a fondos de pensiones y solidaridad pensional a cargo del trabajador",null,null,null,null,null,null,null,null,null,null,null,null,null,null,null,null,null,null,null,null,null,null,null,null,null,null,null,null,null,null,null,null,null,null,null,null,null,null,null,null,51,{"$f":"SUM(VLOOKUP(AD6,Aportes!$A$14:$L$509,{7;8;9},FALSE))","v":904120}]
[null,"Cotizaciones voluntarias al régimen de ahorro individual con solidaridad - RAIS",null,null,null,null,null,null,null,null,null,null,null,null,null,null,null,null,null,null,null,null,null,null,null,null,null,null,null,null,null,null,null,null,null,null,null,null,null,null,null,null,52,{"$f":"VLOOKUP(AD6,Aportes!$A$14:$L$509,10,FALSE)","v":0},null,null,null,null,null,null,null,null,null,"Ir a Nota 6"]
[null,"Aportes voluntarios a fondos de pensiones",null,null,null,null,null,null,null,null,null,null,null,null,null,null,null,null,null,null,null,null,null,null,null,null,null,null,null,null,null,null,null,null,null,null,null,null,null,null,null,null,53,{"$f":"VLOOKUP(AD6,Aportes!$A$14:$L$509,11,FALSE)","v":0}]
[null,"Aportes a cuentas AFC o AVC",null,null,null,null,null,null,null,null,null,null,null,null,null,null,null,null,null,null,null,null,null,null,null,null,null,null,null,null,null,null,null,null,null,null,null,null,null,null,null,null,54,{"$f":"VLOOKUP(AD6,Aportes!$A$14:$L$509,12,FALSE)","v":0}]
[null,"Valor de la retención en la fuente por rentas de trabajo y pensiones",null,null,null,null,null,null,null,null,null,null,null,null,null,null,null,null,null,null,null,null,null,null,null,null,null,null,null,null,null,null,null,null,null,null,null,null,null,null,null,null,55,{"$f":"SUM(VLOOKUP(AD6,Retenciones!$A$11:$D$508,{3;4},FALSE))","v":0}]
[null,"Nombre del pagador o agente retenedor"]
[null,"Datos a cargo del trabajador o pensionado"]
[null,"Concepto de otros ingresos",null,null,null,null,null,null,null,null,null,null,null,null,null,null,null,null,null,null,null,null,null,null,null,null,null,null,null,null,null,null,null,null,null,null,"Valor recibido",null,null,null,null,null,"Valor retenido",null,null,null,null,null,null,null,null,null,null,"Ir a Nota 7"]
[null,"Arrendamientos",null,null,null,null,null,null,null,null,null,null,null,null,null,null,null,null,null,null,null,null,null,null,null,null,null,null,null,null,null,null,null,null,null,null,56,null,null,null,null,null,63]
[null,"Honorarios, comisiones y servicios",null,null,null,null,null,null,null,null,null,null,null,null,null,null,null,null,null,null,null,null,null,null,null,null,null,null,null,null,null,null,null,null,null,null,57,null,null,null,null,null,64]
[null,"Intereses y rendimientos financieros",null,null,null,null,null,null,null,null,null,null,null,null,null,null,null,null,null,null,null,null,null,null,null,null,null,null,null,null,null,null,null,null,null,null,58,null,null,null,null,null,65]
[null,"Enajenación de activos fijos",null,null,null,null,null,null,null,null,null,null,null,null,null,null,null,null,null,null,null,null,null,null,null,null,null,null,null,null,null,null,null,null,null,null,59,null,null,null,null,null,66]
[null,"Loterías, rifas, apuestas y similares",null,null,null,null,null,null,null,null,null,null,null,null,null,null,null,null,null,null,null,null,null,null,null,null,null,null,null,null,null,null,null,null,null,null,60,null,null,null,null,null,67]
[null,"Otros",null,null,null,null,null,null,null,null,null,null,null,null,null,null,null,null,null,null,null,null,null,null,null,null,null,null,null,null,null,null,null,null,null,null,61,null,null,null,null,null,68]
[null,"Totales: (Valor recibido: Sume 56 a 61), (Valor retenido: Sume 63 a 68) ",null,null,null,null,null,null,null,null,null,null,null,null,null,null,null,null,null,null,null,null,null,null,null,null,null,null,null,null,null,null,null,null,null,null,62,{"$f":"SUM(AL41:AP46)","v":0},null,null,null,null,69,{"$f":"SUM(AR41:AZ46)","v":0}]
[null,"Total retenciones año gravable 2021 (Sume 55 + 69)",null,null,null,null,null,null,null,null,null,null,null,null,null,null,null,null,null,null,null,null,null,null,null,null,null,null,null,null,null,null,null,null,null,null,null,null,null,null,null,null,70,{"$f":"AR37+AR47","v":0}]
[null,"Item","71. Identificación de los bienes y derechos poseídos",null,null,null,null,null,null,null,null,null,null,null,null,null,null,null,null,null,null,null,null,null,null,null,null,null,null,null,null,null,null,null,null,null,null,null,null,null,null,null,null,"72. Valor Patrimonial",null,null,null,null,null,null,null,null,null,"Ir a Nota 8"]
[null,1]
[null,2]
[null,3]
[null,4]
[null,5]
[null,6]
[null,"Deudas vigentes a 31 de Diciembre de 2022",null,null,null,null,null,null,null,null,null,null,null,null,null,null,null,null,null,null,null,null,null,null,null,null,null,null,null,null,null,null,null,null,null,null,null,null,null,null,null,null,73]
[null,"Identificación de la persona dependiente de acuerdo al parágrafo 2 del artículo 387 del Estatuto Tributario"]
[null,"74. tipo documento",null,null,null,null,null,null,"75. No. Documento",null,null,null,null,null,null,null,null,"76. Apellidos y Nombres",null,null,null,null,null,null,null,null,null,null,null,null,null,null,null,null,null,null,null,null,null,null,null,null,null,null,null,"77. Parentesco"]
[]
[null,"Certifico que durante el año gravable de 2022:",null,null,null,null,null,null,null,null,null,null,null,null,null,null,null,null,null,null,null,null,null,null,null,null,null,null,null,null,null,null,null,null,null,null,null,null,null,"Firma del Trabajador o Pensionado"]
[null," 1. Mi patrimonio bruto no excedió de 4.500 UVT ($171.018.000)"]
[null,"2. Mis ingresos brutos fueron inferiores a 1.400 UVT ($53.206.000)."]
[null,"3. No fui responsable del impuesto sobre las ventas a 31 de diciembre de 2022."]
[null,"4. Mis consumos mediante tarjeta de crédito no excedieron la suma de 1.400 UVT ($53.206.000)."]
[null,"5. Que el total de mis compras y consumos no superaron la suma de 1.400 UVT ($53.206.000)."]
[null,"6. Que el valor total de mis consignaciones bancarias, depósitos o inversiones financieras no excedieron los 1.400 UVT ($53.206.000)."]
[null,"Por lo tanto, manifiesto que no estoy obligado a presentar declaración de renta y complementario por el año gravable 2022."]
[null,"NOTA: este certificado sustituye para todos los efectos legales la declaración de Renta y Complementario para el trabajador o pensionado que lo firme.\nPara aquellos trabajadores independientes contribuyentes del impuesto unificado deberán presentar la declaración anual consolidada del Régimen Simple de Tributación (SIMPLE).",null,null,null,null,null,null,null,null,null,null,null,null,null,null,null,null,null,null,null,null,null,null,null,null,null,null,null,null,null,null,null,null,null,null,null,null,null,null,null,null,null,null,null,null,null,null,null,null,null,null,null,"Ir a Nota 9"]

{"sheet":"Comentarios","index":9,"n_rows":127,"n_cols":1,"rows_kept":127,"cut":false,"hidden":false,"merged":[[80,0,80,7],[81,0,83,7],[85,0,85,7],[86,0,89,7],[50,0,50,7],[52,0,52,7],[53,0,53,7],[55,0,55,7],[73,0,78,7],[56,0,56,7],[58,0,58,7],[59,0,59,7],[61,0,61,7],[62,0,62,7],[67,0,67,7],[65,0,65,7],[72,0,72,7],[68,0,70,7],[64,0,64,7],[23,0,23,7],[25,0,25,7],[26,0,26,7],[28,0,28,7],[29,0,29,7],[31,0,31,7],[49,0,49,7],[32,0,32,7],[34,0,34,7],[35,0,35,7],[37,0,37,7],[38,0,38,7],[40,0,40,7],[22,0,22,7],[10,0,10,7],[11,0,11,7],[13,0,13,7],[14,0,14,7],[5,0,7,7],[16,0,16,7],[17,0,17,7],[19,0,19,7],[20,0,20,7],[8,0,8,7],[41,0,41,7],[43,0,43,7],[44,0,44,7],[46,0,46,7],[47,0,47,7],[91,0,91,7],[92,0,94,7],[96,0,96,7],[97,0,100,7],[102,0,102,7],[121,0,123,7],[125,0,125,7],[126,0,128,7],[103,0,105,7],[107,0,107,7],[115,0,115,7],[116,0,118,7],[120,0,120,7],[108,0,113,7]]}
[]
[]
[]
[]
[]
["Comentarios y notas para el diligenciamiento de este formato"]
[]
[]
[{"$f":"Introducción!A9","v":"Fecha de elaboración: 28 de marzo de 2023"}]
[]
["Nota 1 (volver a la hoja \"Datos iniciales\")"]
["Esta columna \"ID\" incluida en las hojas \"Datos iniciales\", \"Ingresos\", \"Aportes\" y \"Retenciones\" requiere una numeración consecutiva que será insumo para la emisión de cada archivo en PDF con el borrador del formulario 220. Ver hoja \"F220\", celda BC5."]
[]
["Nota 2 (volver a la hoja \"Datos iniciales\")"]
["Se recomienda dejar los datos sin caracteres especiales y en la nomenclatura empleada en el ejemplo expuesto. "]
[]
["Nota 1 (volver a la hoja \"Ingresos\")"]
["Esta columna \"ID\" incluida en las hojas \"Datos iniciales\", \"Ingresos\", \"Aportes\" y \"Retenciones\" requiere una numeración consecutiva que será insumo para la emisión de cada archivo en PDF con el borrador del formulario 220. Ver hoja \"F220\"."]
[]
["Nota 2 (volver a la hoja \"Ingresos\")"]
["Se deben incluir los ingresos que provengan de una relación laboral con base en lo expuesto en el artículo 127 del Código Sustantivo del Trabajo."]
[]
["Nota 3 (volver a la hoja \"Ingresos\")"]
["Se consideran emolumentos eclesiásticos a los pagos o abonos en cuenta, ya sean en dinero o en especie que se realicen en forma directa o indirecta con el propósito de compensar o retribuir el servicio personal del ministro del culto, sin distinción de la forma en que este se denomine y de la orientación o credo religioso que profese."]
[]
["Nota 4 (volver a la hoja \"Ingresos\")"]
["Ubicamos en este apartado algunos ejemplos de lo que se considera pago de honorarios (valores efectivamente pagados a quienes prestan honorarios). Recomendamos ajustar estas casillas a cada caso particular, teniendo en cuenta que se entiende que se realiza el pago de un honorario cuando para la persona natural que ejecuta la labor predomina el factor intelectual sobre el técnico; por lo general, este tipo de servicio es prestado por personas con título profesional, experiencia y habilidades en un área específica del conocimiento."]
[]
["Nota 5 (volver a la hoja \"Ingresos\")"]
["Ubicamos en este apartado algunos ejemplos de lo que se considera pago de servicios (valores efectivamente pagados a quienes prestan servicios). Recomendamos ajustar estas casillas a cada caso particular, teniendo en cuenta que se entiende que se realiza el pago de un servicio cuando quien recibe el pago ejecuta una labor en la que predomina el factor técnico o manual sobre el intelectual."]
[]
["Nota 6 (volver a la hoja \"Ingresos\")"]
["Sugerimos ajustar estas casillas a cada caso particular, teniendo en cuenta que se entiende por “otros pagos” a los realizados en el período por conceptos diferentes a los mencionados en otras casillas de este apartado de ingresos, siempre y cuando estos “otros pagos” se hayan originado en la relación laboral o legal y reglamentaria, y constituyan renta de trabajo o de pensiones."]
[]
["Nota 7 (volver a la hoja \"Ingresos\")"]
["En la estructura de este formulario para año gravable 2022, al igual que lo sucedido para el año gravable 2021, se separan los conceptos referentes a las cesantías e intereses de cesantías efectivamente pagadas o reconocidas al empleado y las consignadas al fondo."]
[]
["Nota 1 (volver a la hoja \"Aportes\")"]
["Esta columna \"ID\" incluida en las hojas \"Datos iniciales\", \"Ingresos\", \"Aportes\" y \"Retenciones\" requiere una numeración consecutiva que será insumo para la emisión de cada archivo en PDF con el borrador del formulario 220. Ver hoja \"F220\", celda BC5."]
[]
["Nota 2 (volver a la hoja \"Aportes\")"]
["Las fórmulas de esta columna han sido adecuadas para el caso de trabajadores dependientes cuyo contrato proviene de una relación laboral. Recomendamos editar esta celda para cada caso particular en el que exista otro tipo de condición en una contratación legal y reglamentaria.\n\nPor otra parte, de acuerdo con lo expuesto en el artículo 30 de la Ley 1393 de 2010, sin perjuicio de lo previsto para otros fines, para los efectos relacionados con la cotización al régimen contributivo de salud, los pagos laborales no constitutivos de salario de los trabajadoress no podrán ser superiores al 40 % del total de la remuneración. El excedente de dicho porcentaje será base para realizar dichas cotizaciones. Esta situación la hemos contemplado en esta fórmula, no obstante, se debe verificar el valor realmente aportado en la Pila, el cual tendría que coincidir con el aquí expuesto."]
[]
["Nota 3 (volver a la hoja \"Aportes\")"]
["Los aportes realizados por trabajadores independientes generalmente no se certifican, dado que, aunque dichos trabajadores aportan su respectiva planilla Pila como constancia de los aportes que realizaron como independientes, resulta difícil para el contratante determinar que el valor reportado en la Pila efectivamente corresponde al valor contratado con la entidad, puesto que el trabajador puede tener otros ingresos con otros terceros; por dicha razón, no se incluye en este apartado el valor del aporte. \n\nNo obstante, hay algunos casos en los que el contratante acuerda con el trabajador independiente realizar una retención de la respectiva seguridad social para hacer el pago en la planilla Pila; será en este tipo de casos en los que efectivamente se certifique el valor. Recomendamos revisar esta situación e incluir en este apartado ese tipo de aportes por certificar en este formulario."]
[]
["Nota 4 (volver a la hoja \"Aportes\")"]
["Las fórmulas de esta columna han sido adecuada para el caso de trabajadores dependientes cuyo contrato proviene de una relación laboral. Recomendamos editar esta celda para cada caso particular en el que exista otro tipo de condición en una contratación legal y reglamentaria.\n\nPor otra parte, de acuerdo con lo expuesto en el artículo 30 de la Ley 1393 de 2010, sin perjuicio de lo previsto para otros fines, para los efectos relacionados con la cotización al régimen contributivo de salud, los pagos laborales no constitutivos de salario de los trabajadores particulares no podrán ser superiores al 40 % del total de la remuneración. \n\nEl excedente de dicho porcentaje será base para realizar dichas cotizaciones. Esta situación la hemos contemplado en esta fórmula, no obstante, se debe verificar el valor realmente aportado en la Pila, el cual tendría que coincidir con el aquí expuesto."]
[]
["Nota 5 (volver a la hoja \"Aportes\")"]
["Los aportes realizados por trabajadores independientes generalmente no se certifican, dado que, aunque dichos trabajadores aportan su respectiva planilla Pila como constancia de los aportes que realizaron como independientes, resulta difícil para el contratante determinar que el valor reportado en la Pila efectivamente corresponde al valor contratado con la entidad, puesto que el trabajador puede tener otros ingresos con otros terceros; por dicha razón, no se incluye en este apartado el valor del aporte. \n\nNo obstante, hay algunos casos en los que el contratante acuerda con el trabajador independiente realizar una retención de la respectiva seguridad social para hacer el pago en la planilla Pila; será en este tipo de casos en los que efectivamente se certifique el valor. Recomendamos revisar esta situación e incluir en este apartado ese tipo de aportes por certificar en este formulario."]
[]
["Nota 6 (volver a la hoja \"Aportes\")"]
["El porcentaje por aplicar se determina de acuerdo con lo expuesto en el artículo 2.2.14.1.6 del Decreto 1833 de 2016 y en el artículo 27 de la Ley 100 de 1993, y los porcentajes por calcular se definen según el salario devengado mes a mes. Por favor, alojar en esta columna el valor aportado durante el 2022 al fondo de solidaridad pensional. Si se desea ratificar el valor aportado mes a mes, recomendamos revisar nuestra herramienta incluida en las Suscripciones Básica, Oro y Platino: \n\nhttps://actualicese.com/aportes-al-fondo-de-solidaridad-pensional-por-parte-de-un-empleado/"]
[]
["Nota 7 (volver a la hoja \"Aportes\")"]
["En esta versión del formulario 220, las cotizaciones voluntarias realizadas al régimen de ahorro individual con solidaridad –RAIS– se reportan de forma independiente en el renglón 52.\n\nCabe anotar que este tipo de cotizaciones voluntarias, si bien se pueden restar como ingreso no gravado en la declaración de renta del trabajador, deben someterse al límite expuesto en el artículo 55 del ET (ver artículo 1.2.1.12.9 del DUT 1625 de 2016, sustituido por el Decreto 1435 de noviembre 5 de 2020).\n\nTeniendo en cuenta lo anterior, se recomienda ubicar en este apartado los aportes voluntarios al fondo de pensiones obligatorias en el régimen de ahorro individual con solidaridad –RAIS– que el trabajador haya realizado a través de la entidad contratante; de otra manera, no habría justificación para certificar dicho valor."]
[]
["Nota 8 (volver a la hoja \"Aportes\")"]
["En este apartado se deben alojar los aportes voluntarios que el trabajador haya realizado al fondo de pensiones voluntarias y que efectivamente el contratante haya deducido de los ingresos del trabajador (ver artículo 126-1 del ET y artículo 1.2.1.22.41 del DUT 1625 de 2016)."]
[]
["Nota 9 (volver a la hoja \"Aportes\")"]
["En este apartado se deben alojar los aportes voluntarios que el trabajador haya realizado a cuentas de ahorro y fomento a la construcción –AFC– y que efectivamente el contratante haya deducido de los ingresos del trabajador (ver artículo 126-4 del ET y artículo 1.2.1.22.43 del DUT 1625 de 2016)."]
[]
["Nota 1 (volver a la hoja \"Retenciones\")"]
["Esta columna \"ID\" incluida en las hojas \"Datos iniciales\", \"Ingresos\", \"Aportes\" y \"Retenciones\" requiere una numeración consecutiva que será insumo para la emisión de cada archivo en PDF con el borrador del formulario 220. Ver hoja \"F220\", celda BC5."]
[]
["Nota 2 (volver a la hoja \"Retenciones\")"]
["En este apartado se debe alojar la retención realizada a quienes perciben rentas de trabajo, efectuada bajo procedimiento 1 y 2, la cual debió realizarse teniendo en cuenta que:\n\nCuando la persona natural residente obtuvo pagos laborales fue posible practicarle retención en la fuente a través de los procedimientos 1 o 2.\n\nDebió aplicarse el procedimiento 1 para las personas naturales residentes que no tienen un vínculo laboral.\n\nSi el pago se realizó a personas naturales residentes que recibieron pagos o abonos en cuenta por concepto de honorarios, comisiones, servicios, emolumentos y demás compensaciones por servicios personales (las cuales manifestaron que durante el año no subcontrataron a otras dos [2] o más personas), se debió utilizar el procedimiento 1.\n\nAhora, si se trató de una persona que percibe rentas de trabajo sin vínculo laboral, pero que manifestó que sí vinculó a otras dos (2) o más personas, su retención se debió practicar con las tarifas tradicionales del artículo 392 del ET: 3,5 %, 4 %, 6 %, 11 %, etc.\n\nTeniendo en cuenta esto, se tuvo que haber revisado lo dispuesto en los artículos 383 (retención en la fuente), 385 (procedimiento 1), 386 (procedimiento 2) y 388 (depuración de la base del cálculo de la retención en la fuente) del ET, entre otras disposiciones consagradas en dicho estatuto y el DUT 1625 de 2016.\n\nSi deseas ampliar esta información, puedes ingresar a este enlace: https://actualicese.com/formatos-y-condiciones-para-retencion-en-la-fuente-bajo-procedimientos-1-y-2-en-el-ano-gravable-2022/"]
[]
[]
[]
["Nota 3 (volver a la hoja \"Retenciones\")"]
["Los pagos por concepto de pensiones de jubilación, invalidez, vejez y de sobrevivientes que sean menores a 1.000 UVT mensuales y 12.000 UVT anuales ($38.004.000 y $456.048.000 para 2022) no debían someterse a retención en la fuente. El valor que estuvo por encima de dicho monto debió estar sujeto a retención bajo los parámetros de la tabla del artículo 383 del ET (te invitamos a revisar nuestro formato incluido en la Suscripción Básica, Oro y Platino: \n\nhttps://actualicese.com/calculo-retencion-en-la-fuente-a-titulo-de-renta-por-concepto-de-pensiones/)"]
[]
[]
[]
[]
[]
[]
["Nota 1 (volver a la hoja \"F220\")"]
["Se debe tener en cuenta que esta es una plantilla elaborada con base en el diseño del formulario emitido por la Dian, pero Actualícese no emite esta guía en representación de dicha entidad. El diseño, los datos, comentarios o interpretaciones bajo las cuales ha sido elaborada esta plantilla se entregan a título de guía. Será el contribuyente quien deba atender las instrucciones de la Dian, estudiar las normas requeridas, preparar y emitir la información a la que haya lugar. Actualícese no se hace responsable de las interpretaciones, operaciones o información derivadas del uso de esta herramienta."]
[]
[]
[]
["Nota 2 (volver a la hoja \"F220\")"]
["Para visualizar la información de la hoja F220 para cada colaborador en la celda BD5 se debe ubicar el ID que corresponda a dicho colaborador, se debe tener en cuena que cada ID está relacionado con el número de cédula. Para saber qué ID está relacionado a cada persona le invitamos a ver el anexo \"Datos iniciales\".\n\nPara descargar en PDF el certificado de cada colaborador, se debe tener en cuenta que el número que se aloje en la celda BC7 indica el inicio del rango de certificados que se desean generar en PDF y el número que se aloje en la celda BD7 indica el final."]
[]
[]
[]
[]
["Nota 3 (volver a la hoja \"F220\")"]
["En las casillas 30 y 31 del formulario hemos ubicado el período de enero 1 de 2022 hasta el 31 de diciembre de 2022 para efectos generales; no obstante, si se trata de un trabajador independiente, por favor ubicar en este apartado el período contratado; si se trata de varias contrataciones, sería desde la fecha inicial del primer contrato hasta la fecha final del último contrato."]
[]
[]
[]
["Nota 4 (volver a la hoja \"F220\")"]
["En la estructura de este formulario para el año gravable 2022, al igual que lo sucedido con el año gravable 2021, se generan nuevas casillas como la 46 y 47 para separar los conceptos referentes a las cesantías e intereses de cesantías efectivamente pagadas o reconocidas al empleado y las consignadas al fondo. Ver las columnas AE hasta AH de la hoja \"Ingresos\"."]
[]
[]
[]
[]
["Nota 5 (volver a la hoja \"F220\")"]
["En estos 5 renglones (casillas 50 a 54) irán los aportes que hizo solo el empleado, de forma que si este luego debe presentar declaración de renta del año gravable 2022, deberá tener en cuenta que estos valores son los que podrá tratar en dicha declaración como un \"ingreso no gravado\" o \"renta exenta\". \n\nEs importante revisar con detalle la información de cada apartado de la hoja “Aportes”, la cual es la fuente del resultado que arrojan estas celdas."]
[]
[]
[]
["Nota 6 (volver a la hoja \"F220\")"]
["Las cotizaciones voluntarias realizadas al régimen de ahorro individual con solidaridad –RAIS– se reportan de forma independiente para año gravable 2022 en el renglón 52. Cabe anotar que este tipo de cotizaciones voluntarias, si bien se pueden restar como ingreso no gravado en la declaración de renta del trabajador, deben someterse al límite expuesto en el artículo 55 del ET (ver el artículo 1.2.1.12.9 del DUT 1625 de 2016, sustituido por el Decreto 1435 de noviembre 5 de 2020)."]
[]
[]
[]
[]
[]
[]
["Nota 7 (volver a la hoja \"F220\")"]
["Estos datos (que solo los diligenciará directamente el mismo trabajador cuando reciba este documento) deben manejarse con cuidado, pues si se trata de un contribuyente cuya actividad no es mercantil (por ejemplo, un profesional), dichos ingresos deben ser de los que se pagaron efectivamente en el año (recordemos que como los asalariados y otros contribuyentes no llevan contabilidad, los ingresos que los obligarían a declarar son los que efectivamente hayan recibido en el año, en dinero o en especie, a excepción de los ingresos por venta de activos fijos o por dividendos y participaciones, los cuales, con solo haberse causado a favor del contribuyente, lo obligarían a declarar renta, siempre que todos los ingresos combinados superen el tope –ver artículo 27 del ET–). \n\nNo obstante, si se trata de un prestador de servicios cuya actividad es mercantil, deberá tener en cuenta no solo los ingresos que se le hayan pagado efectivamente, sino también los que al cierre de 2022 se le quedaron debiendo. Con la suma que cada quien haga de sus ingresos brutos es como cada uno podrá definir si quedó o no obligado a declarar renta por el año gravable 2022 (ver más abajo los datos de este certificado). Por ejemplo, si sus ingresos brutos totales de 2022 superaron las 1.400 UVT ($53.206.000), sería un contribuyente obligado a declarar renta en dicho año; ver los artículo 1.6.1.13.2.7 del DUT 1625 de octubre de 2016."]
[]
[]
[]
["Nota 8 (volver a la hoja \"F220\")"]
["Este \"valor patrimonial\" para cada tipo de activos que posea el trabajador a diciembre 31 se debe definir con los criterios fiscales de los artículos 267 al 287 del ET. Si el valor fiscal bruto de todos sus bienes a diciembre 31 excede las 4.500 UVT ($171.018.000), quedaría obligado a declarar renta por el año gravable 2022."]
[]
[]
[]
["Nota 9 (volver a la hoja \"F220\")"]
["Ver el artículo 1.6.1.13.2.49 del DUT 1625 de octubre de 2016, luego de ser sustituido con el artículo 1 del Decreto 1951 de noviembre de 2017."]

{"sheet":"Instructivo","index":10,"n_rows":0,"n_cols":0,"rows_kept":0,"cut":false,"hidden":false,"merged":[]}

{"sheet":"Hoja1","index":11,"n_rows":0,"n_cols":0,"rows_kept":0,"cut":false,"hidden":false,"merged":[]}